bitfinex/quotes_SOLUSD_20250922
["timestamp","ask_amount","ask_price","bid_price","bid_amount"]
[1758519983146,0.2,231.55,231.47,34.04]
[1758519983549,0.2,231.55,231.48,0.66]
[1758519985250,0.2,231.55,231.46,15.12140326]
[1758519985251,0.71,231.54,231.45,0.66]
[1758519985452,0.71,231.54,231.46,33.38]
[1758519985637,0.71,231.53,231.46,34.04]
[1758519986039,0.71,231.53,231.46,0.66]
[1758519986240,0.71,231.53,231.47,33.38]
[1758519986442,0.71,231.53,231.48,4.32002764]
[1758519986643,0.71,231.52,231.48,4.32002764]
[1758519986852,0.71,231.52,231.49,33.38]
[1758519987147,4.51875417,231.55,231.49,33.38]
[1758519987360,0.66,231.51,231.47,33.38]
[1758519987662,0.66,231.5,231.47,33.38]
[1758519988335,0.66,231.49,231.42,4.32104788]
[1758519988560,0.66,231.48,231.41,33.42]
[1758519988863,4.31946784,231.51,231.38,0.67]
[1758519988864,0.66,231.47,231.38,0.67]
[1758519989035,31.86,231.47,231.36,0.67]
[1758519989237,31.86,231.47,231.37,29.66]
[1758519989437,0.66,231.46,231.38,33.42]
[1758519989650,0.66,231.46,231.39,0.67]
[1758519990145,0.66,231.46,231.4,33.44]
[1758519990547,0.66,231.46,231.41,4.32133442]
[1758519990753,0.66,231.46,231.41,4.99133442]
[1758519991940,4.32023743,231.47,231.41,0.67]
[1758519992147,0.66,231.46,231.41,0.67]
[1758519992968,31.2,231.45,231.36,0.67]
[1758519993180,31.2,231.45,231.37,33.42]
[1758519993181,0.66,231.44,231.37,33.42]
[1758519993347,0.66,231.44,231.38,0.67]
[1758519993541,0.66,231.5,231.38,0.67]
[1758519994246,0.66,231.5,231.39,33.44]
[1758519994478,31.86,231.5,231.4,0.67]
[1758519994648,132.2,231.51,231.4,0.67]
[1758519995146,132.2,231.51,231.41,15.12467049]
[1758519995374,132.2,231.51,231.42,0.67]
[1758519995567,0.66,231.52,231.42,0.67]
[1758519996076,0.66,231.52,231.43,33.46]
[1758519996370,0.66,231.51,231.44,0.67]
[1758519997071,0.66,231.51,231.45,4.32058759]
[1758519997746,31.2,231.53,231.46,0.67]
[1758519999172,31.2,231.53,231.47,4.32021428]
[1758519999352,31.2,231.53,231.47,4.99021428]
[1758520000275,0.66,231.52,231.47,4.99021428]
[1758520000456,0.66,231.51,231.47,4.99021428]
[1758520001366,0.66,231.51,231.47,4.32021428]
[1758520001571,0.66,231.5,231.45,37.74045433]
[1758520001869,0.66,231.49,231.45,37.74045433]
[1758520002066,31.2,231.53,231.45,38.41045433]
[1758520002271,0.66,231.51,231.45,38.41045433]
[1758520002660,0.66,231.5,231.45,38.41045433]
[1758520002863,0.66,231.49,231.45,37.74045433]
[1758520003274,0.66,231.51,231.46,0.67]
[1758520003478,0.66,231.51,231.47,4.32021428]
[1758520004175,0.66,231.51,231.47,4.99021428]
[1758520004763,31.2,231.53,231.47,4.32021428]
[1758520004963,31.86,231.53,231.47,4.99021428]
[1758520005367,0.66,231.52,231.47,4.99021428]
[1758520005677,0.66,231.51,231.47,4.32021428]
[1758520005864,31.2,231.53,231.47,4.32021428]
[1758520006065,31.2,231.53,231.48,0.67]
[1758520006577,0.66,231.52,231.47,4.32021428]
[1758520006771,0.66,231.52,231.48,0.67]
[1758520007078,0.66,231.52,231.47,4.32021428]
[1758520007262,0.66,231.52,231.47,0.67]
[1758520007460,0.66,231.51,231.47,0.67]
[1758520008173,31.86,231.53,231.48,0.67]
[1758520008375,31.86,231.53,231.49,0.67]
[1758520008784,0.2,231.55,231.46,15.12140326]
[1758520008960,31.2,231.53,231.49,0.67]
[1758520009160,31.2,231.53,231.5,0.67]
[1758520009380,0.86,231.55,231.51,0.67]
[1758520009882,0.66,231.54,231.49,0.67]
[1758520010474,0.66,231.53,231.5,4.31965442]
[1758520011171,0.66,231.52,231.45,0.67]
[1758520011377,0.66,231.52,231.46,33.38]
[1758520011686,0.66,231.51,231.46,37.70040093]
[1758520011860,0.66,231.51,231.47,0.67]
[1758520012788,0.66,231.51,231.48,4.32002764]
[1758520015386,0.66,231.53,231.48,4.32002764]
[1758520015593,0.66,231.52,231.48,4.32002764]
[1758520015991,0.66,231.51,231.48,4.32002764]
[1758520016189,0.66,231.53,231.48,4.32002764]
[1758520016368,0.66,231.52,231.48,4.99002764]
[1758520018688,0.66,231.52,231.48,4.32002764]
[1758520019083,0.66,231.52,231.48,4.99002764]
[1758520019284,0.66,231.51,231.48,4.32002764]
[1758520019801,0.66,231.51,231.47,4.32021428]
[1758520019979,0.66,231.51,231.47,4.99021428]
[1758520020299,0.66,231.53,231.48,0.67]
[1758520020480,0.66,231.52,231.48,0.67]
[1758520021772,0.66,231.52,231.49,4.31984102]
[1758520023101,0.66,231.52,231.48,4.99002063]
[1758520023481,0.2,231.55,231.46,4.32025824]
[1758520023482,0.66,231.51,231.46,4.32025824]
[1758520023683,0.66,231.5,231.45,33.32]
[1758520023887,0.66,231.49,231.42,33.34]
[1758520024092,0.66,231.48,231.43,0.67]
[1758520024403,0.66,231.48,231.44,0.67]
[1758520025580,0.66,231.48,231.4,10.80380293]
[1758520025581,0.66,231.47,231.41,4.32117478]
[1758520025785,0.66,231.46,231.41,4.32117478]
[1758520025981,42.00380293,231.48,231.42,0.67]
[1758520026187,42.66380293,231.48,231.42,0.67]
[1758520027081,46.98392465,231.48,231.42,0.67]
[1758520027384,42.66380293,231.48,231.43,4.32096098]
[1758520027588,0.66,231.47,231.43,4.99096098]
[1758520028383,0.66,231.46,231.41,0.67]
[1758520028575,0.66,231.46,231.42,0.67]
[1758520029199,0.66,231.45,231.39,4.32156984]
[1758520029516,0.66,231.44,231.35,4.99245515]
[1758520029685,31.2,231.41,231.3,0.67]
[1758520030004,34.04,231.4,231.3,31.87]
[1758520030304,0.72,231.39,231.31,0.71]
[1758520030687,12.99798531,231.4,231.31,0.71]
[1758520030896,31.2,231.41,231.31,0.71]
[1758520031195,31.2,231.41,231.32,15.13055506]
[1758520031389,31.2,231.41,231.33,0.71]
[1758520032383,31.92,231.41,231.33,0.71]
[1758520033302,31.92,231.41,231.34,4.32264199]
[1758520033507,0.72,231.4,231.34,4.32264199]
[1758520034537,0.72,231.4,231.34,15.12924698]
[1758520035213,0.72,231.4,231.35,0.71]
[1758520035509,0.72,231.4,231.36,4.32226832]
[1758520036007,0.72,231.4,231.36,5.03226832]
[1758520036401,0.72,231.4,231.36,4.32226832]
[1758520036795,0.72,231.4,231.36,5.03226832]
[1758520037105,31.2,231.41,231.37,0.71]
[1758520037301,31.92,231.41,231.37,0.71]
[1758520037789,31.92,231.41,231.38,4.32189471]
[1758520040013,31.92,231.41,231.37,4.32208151]
[1758520041114,165.54,231.43,231.38,0.71]
[1758520041298,0.72,231.42,231.38,0.71]
[1758520041792,0.72,231.42,231.37,15.12728529]
[1758520041993,178.53629606,231.43,231.37,15.83728529]
[1758520042190,0.72,231.42,231.37,15.83728529]
[1758520043013,0.72,231.41,231.37,15.83728529]
[1758520046216,145.91629606,231.43,231.37,15.83728529]
[1758520046434,0.72,231.42,231.37,15.83728529]
[1758520046618,0.72,231.41,231.37,15.83728529]
[1758520046919,145.19629606,231.43,231.37,15.83728529]
[1758520047129,0.72,231.41,231.37,15.83728529]
[1758520047535,145.19629606,231.43,231.37,15.12728529]
[1758520047707,145.91629606,231.43,231.37,15.84728529]
[1758520049111,145.19629606,231.43,231.37,15.84728529]
[1758520049302,0.72,231.42,231.37,15.84728529]
[1758520050004,0.72,231.42,231.38,0.72]
[1758520051626,0.72,231.42,231.39,4.32170793]
[1758520052118,0.72,231.41,231.35,0.72]
[1758520052323,11.52520378,231.41,231.35,0.72]
[1758520053421,0.72,231.41,231.35,0.72]
[1758520053913,0.72,231.41,231.36,15.12793913]
[1758520054101,0.72,231.41,231.37,0.72]
[1758520055024,10.80632424,231.42,231.36,15.12793913]
[1758520055198,10.80632424,231.42,231.38,0.72]
[1758520055516,178.47629606,231.43,231.38,0.72]
[1758520055723,178.47629606,231.43,231.39,0.72]
[1758520056123,178.47629606,231.43,231.4,4.32152117]
[1758520056328,179.19629606,231.43,231.4,4.32152117]
[1758520057424,132.2,231.43,231.41,0.72]
[1758520057630,0.72,231.5,231.41,0.72]
[1758520057631,10.80567081,231.5,231.41,0.72]
[1758520057819,0.72,231.52,231.41,0.72]
[1758520058137,33.32,231.51,231.41,0.72]
[1758520058510,0.72,231.52,231.41,0.72]
[1758520058707,31.2,231.51,231.41,0.72]
[1758520058902,0.72,231.52,231.41,0.72]
[1758520059203,132.92,231.54,231.42,15.12401693]
[1758520059408,132.2,231.54,231.43,0.72]
[1758520059619,132.2,231.54,231.44,33.32]
[1758520059820,0.72,231.53,231.45,0.72]
[1758520060912,0.72,231.53,231.46,15.12140326]
[1758520061112,0.72,231.52,231.46,15.84140326]
[1758520061330,0.72,231.51,231.46,15.12140326]
[1758520061628,0.72,231.5,231.46,15.12140326]
[1758520061831,0.72,231.49,231.46,15.12140326]
[1758520062219,0.72,231.49,231.46,10.80100233]
[1758520062422,0.72,231.52,231.46,11.52100233]
[1758520062930,177.04100233,231.54,231.47,0.72]
[1758520063114,166.24,231.54,231.47,0.72]
[1758520063321,166.24,231.54,231.46,10.80100233]
[1758520063529,165.52,231.54,231.46,10.80100233]
[1758520063830,31.2,231.51,231.45,4.32058759]
[1758520064027,0.72,231.5,231.45,4.32058759]
[1758520064234,0.72,231.49,231.43,15.12329417]
[1758520064426,0.72,231.48,231.43,15.12329417]
[1758520064634,10.80233319,231.49,231.43,15.12329417]
[1758520064920,0.72,231.47,231.43,15.12329417]
[1758520065122,0.72,231.47,231.43,15.84329417]
[1758520065328,0.72,231.46,231.43,15.12329417]
[1758520065526,0.72,231.45,231.43,4.32096098]
[1758520065930,31.2,231.46,231.43,4.32096098]
[1758520066226,0.72,231.45,231.4,15.12516443]
[1758520066433,0.72,231.45,231.4,15.84516443]
[1758520066832,31.92,231.44,231.4,4.32152117]
[1758520067031,0.72,231.43,231.4,4.32152117]
[1758520067635,0.72,231.42,231.4,4.32152117]
[1758520067924,0.72,231.41,231.4,4.32152117]
[1758520068322,0.72,231.41,231.38,4.32189471]
[1758520068722,0.72,231.43,231.38,5.04189471]
[1758520068936,0.72,231.42,231.38,5.04189471]
[1758520070024,0.72,231.42,231.37,15.12709759]
[1758520070338,0.72,231.42,231.38,0.72]
[1758520071227,0.72,231.41,231.39,4.32170793]
[1758520071422,0.72,231.4,231.36,13.84126399]
[1758520071623,0.72,231.4,231.37,4.32208151]
[1758520073139,0.72,231.39,231.37,4.32208151]
[1758520073344,0.72,231.39,231.35,4.32245515]
[1758520073544,0.72,231.39,231.35,5.04245515]
[1758520073734,0.72,231.38,231.32,4.32301573]
[1758520073921,0.72,231.37,231.32,4.32301573]
[1758520074326,0.72,231.36,231.32,5.04301573]
[1758520075627,0.72,231.35,231.32,4.32301573]
[1758520075939,12.99911172,231.38,231.32,4.32301573]
[1758520076142,13.71911172,231.38,231.32,5.04301573]
[1758520078837,0.72,231.38,231.32,5.04301573]
[1758520079038,13.41153624,231.38,231.32,5.04301573]
[1758520079437,0.72,231.38,231.32,5.04301573]
[1758520079643,13.41153624,231.38,231.32,5.04301573]
[1758520079954,0.72,231.37,231.32,5.04301573]
[1758520080152,12.69153624,231.38,231.32,5.04301573]
[1758520080153,0.72,231.36,231.32,5.04301573]
[1758520081245,0.72,231.38,231.32,0.69]
[1758520082157,0.72,231.38,231.3,15.13139746]
[1758520082359,132.92,231.37,231.3,15.82139746]
[1758520082560,0.72,231.36,231.3,15.82139746]
[1758520082758,0.72,231.36,231.3,15.13139746]
[1758520082943,0.72,231.36,231.31,0.69]
[1758520083260,132.2,231.37,231.32,0.69]
[1758520083558,0.72,231.45,231.33,31.2]
[1758520083743,13.71629606,231.45,231.34,0.69]
[1758520084353,47.09629606,231.45,231.35,15.12859303]
[1758520084549,47.09629606,231.45,231.36,0.69]
[1758520084751,12.99629606,231.45,231.36,0.69]
[1758520084948,34.1,231.46,231.36,0.69]
[1758520085157,78.29517013,231.46,231.36,0.69]
[1758520086340,44.91517013,231.46,231.37,15.12728529]
[1758520086659,0.72,231.45,231.38,0.69]
[1758520087356,0.72,231.45,231.39,15.12597777]
[1758520090256,44.19517013,231.46,231.39,15.12597777]
[1758520090462,0.72,231.44,231.39,15.12597777]
[1758520090665,0.72,231.43,231.39,0.69]
[1758520091049,0.65,231.42,231.37,0.68]
[1758520091243,0.65,231.42,231.34,36.74197574]
[1758520091244,0.65,231.42,231.38,0.68]
[1758520091738,0.65,231.42,231.29,25.68670637]
[1758520091739,0.65,231.41,231.35,0.68]
[1758520092036,31.2,231.4,231.35,0.68]
[1758520092253,31.2,231.4,231.3,15.13186337]
[1758520092254,31.2,231.4,231.36,0.68]
[1758520092460,12.69153624,231.41,231.37,0.68]
[1758520092637,0.65,231.42,231.37,0.68]
[1758520092837,0.65,231.41,231.37,0.68]
[1758520093037,0.65,231.4,231.35,0.68]
[1758520093237,0.65,231.4,231.36,0.68]
[1758520093766,0.65,231.4,231.37,4.32208151]
[1758520094164,209.75629606,231.44,231.37,15.12728529]
[1758520094361,0.65,231.42,231.37,15.80728529]
[1758520094577,0.65,231.41,231.37,15.80728529]
[1758520094760,175.39629606,231.44,231.38,0.68]
[1758520095066,131.2,231.44,231.38,0.68]
[1758520095758,131.2,231.44,231.39,15.12597777]
[1758520096060,177.55348161,231.49,231.4,0.68]
[1758520096268,0.65,231.48,231.4,0.68]
[1758520096952,0.65,231.48,231.41,15.12467049]
[1758520097151,0.65,231.48,231.41,15.80467049]
[1758520098969,144.19348161,231.49,231.42,0.68]
[1758520099158,131.2,231.49,231.42,0.68]
[1758520100570,131.2,231.49,231.43,15.12336343]
[1758520100874,131.2,231.49,231.44,0.68]
[1758520101255,131.2,231.49,231.45,0.68]
[1758520101779,131.2,231.49,231.43,15.12336343]
[1758520101780,131.85,231.49,231.43,15.80336343]
[1758520102155,131.85,231.49,231.43,15.12336343]
[1758520102360,131.85,231.49,231.43,15.80336343]
[1758520103881,0.65,231.48,231.43,15.80336343]
[1758520104078,131.2,231.49,231.43,15.80336343]
[1758520104079,0.65,231.47,231.43,15.80336343]
[1758520107877,131.88,231.49,231.44,0.71]
[1758520108088,131.88,231.49,231.45,0.71]
[1758520108989,131.88,231.49,231.46,4.32040093]
[1758520110269,12.99179352,231.52,231.46,15.12140326]
[1758520110469,0.68,231.52,231.47,0.71]
[1758520110668,0.68,231.51,231.47,0.71]
[1758520110882,31.2,231.53,231.46,15.12140326]
[1758520110883,64.52,231.54,231.46,15.12140326]
[1758520111091,0.68,231.53,231.48,0.71]
[1758520111386,0.68,231.52,231.46,15.83140326]
[1758520111765,64.5,231.54,231.46,15.83140326]
[1758520112079,0.68,231.53,231.46,15.12140326]
[1758520112284,0.68,231.52,231.46,15.12140326]
[1758520112469,0.68,231.51,231.46,15.12140326]
[1758520112985,64.5,231.54,231.46,15.12140326]
[1758520112986,0.68,231.5,231.46,15.12140326]
[1758520113187,0.68,231.5,231.46,0.71]
[1758520113488,0.68,231.53,231.46,0.71]
[1758520114690,0.68,231.53,231.47,4.32021428]
[1758520114884,0.68,231.52,231.47,4.32021428]
[1758520115084,0.68,231.51,231.47,4.32021428]
[1758520115281,0.68,231.5,231.47,4.32021428]
[1758520116474,0.68,231.52,231.47,4.32021428]
[1758520116674,0.68,231.51,231.47,5.03021428]
[1758520118998,0.68,231.51,231.47,4.32021428]
[1758520119300,0.68,231.51,231.47,5.03021428]
[1758520120384,0.68,231.51,231.48,0.71]
[1758520120585,0.68,231.53,231.48,0.71]
[1758520120785,31.2,231.54,231.49,0.71]
[1758520121003,0.2,231.55,231.49,0.71]
[1758520121478,31.4,231.55,231.49,0.71]
[1758520122396,0.2,231.55,231.5,15.11879048]
[1758520122595,0.2,231.55,231.51,0.71]
[1758520122794,0.2,231.55,231.5,15.11879048]
[1758520123104,0.2,231.55,231.51,0.71]
[1758520123285,0.2,231.55,231.52,0.71]
[1758520123484,0.88,231.55,231.5,15.82879048]
[1758520123685,0.88,231.55,231.51,0.71]
[1758520124205,0.2,231.55,231.52,0.71]
[1758520124806,0.2,231.55,231.53,4.31909471]
[1758520126385,0.2,231.55,231.52,4.31928127]
[1758520126586,0.2,231.55,231.52,5.02928127]
[1758520127506,0.2,231.55,231.53,0.71]
[1758520128705,0.88,231.55,231.54,4.31890818]
[1758520129789,0.2,231.55,231.54,4.31890818]
[1758520130497,0.2,231.55,231.54,5.02890818]
[1758520131008,0.2,231.55,231.54,4.31890818]
[1758520132397,0.2,231.55,231.53,4.31909471]
[1758520132811,0.2,231.55,231.54,0.71]
[1758520134516,0.2,231.55,231.54,5.02890818]
[1758520140757,0.87,231.55,231.51,4.31946784]
[1758520140957,0.67,231.54,231.51,4.31946784]
[1758520143391,0.67,231.53,231.45,0.66]
[1758520144669,0.67,231.53,231.45,15.78205658]
[1758520144853,0.67,231.52,231.46,0.66]
[1758520146373,31.2,231.51,231.43,4.98077773]
[1758520146556,4.98977982,231.5,231.42,4.32114769]
[1758520146760,0.67,231.49,231.42,4.98114769]
[1758520147065,0.67,231.48,231.42,4.98114769]
[1758520147270,0.67,231.47,231.42,4.98114769]
[1758520147480,0.67,231.47,231.41,4.3212927]
[1758520147651,0.67,231.46,231.39,4.98167655]
[1758520147975,0.67,231.45,231.39,4.98167655]
[1758520148551,0.67,231.44,231.39,4.98167655]
[1758520148744,0.67,231.43,231.39,4.98167655]
[1758520149377,4.32047203,231.46,231.36,31.2]
[1758520149378,0.67,231.42,231.37,4.32196554]
[1758520149753,0.67,231.42,231.37,4.98196554]
[1758520150076,0.67,231.41,231.37,0.66]
[1758520150284,31.2,231.43,231.38,0.66]
[1758520150572,0.67,231.41,231.36,4.99226749]
[1758520150896,0.67,231.4,231.36,4.99226749]
[1758520151449,35.52104061,231.43,231.34,4.99254104]
[1758520151450,0.67,231.39,231.34,4.99254104]
[1758520151666,0.67,231.39,231.34,0.67]
[1758520151874,0.67,231.38,231.32,4.32284021]
[1758520152072,0.67,231.37,231.32,4.32284021]
[1758520152290,0.67,231.36,231.32,4.99284021]
[1758520153356,0.67,231.38,231.32,4.99284021]
[1758520154484,35.5217397,231.39,231.32,4.99284021]
[1758520154655,0.67,231.37,231.32,4.99284021]
[1758520155370,0.67,231.37,231.33,0.67]
[1758520155776,0.67,231.37,231.33,4.99281213]
[1758520157071,0.67,231.36,231.31,4.32306376]
[1758520157278,0.67,231.35,231.31,4.32306376]
[1758520157783,0.67,231.35,231.31,4.99306376]
[1758520157979,0.67,231.34,231.29,4.32357646]
[1758520158186,0.67,231.33,231.29,4.99357646]
[1758520158405,0.67,231.32,231.27,4.32382804]
[1758520158558,31.2,231.34,231.27,4.99382804]
[1758520158755,0.67,231.33,231.27,4.99382804]
[1758520159576,0.67,231.32,231.27,4.99382804]
[1758520159782,0.67,231.31,231.24,0.67]
[1758520160273,0.67,231.31,231.24,4.99451133]
[1758520160476,0.67,231.31,231.25,0.67]
[1758520160970,31.2,231.32,231.25,0.67]
[1758520161687,31.87,231.32,231.26,4.32413733]
[1758520161867,31.2,231.32,231.26,4.99413733]
[1758520162182,31.2,231.3,231.24,4.99433689]
[1758520162366,0.67,231.29,231.24,4.99433689]
[1758520164477,0.67,231.29,231.25,0.67]
[1758520164874,131.87,231.29,231.25,0.67]
[1758520165066,131.2,231.29,231.21,10.81255094]
[1758520165268,0.67,231.28,231.23,0.67]
[1758520165474,0.67,231.28,231.25,4.32432432]
[1758520165894,131.2,231.29,231.25,4.99432432]
[1758520166076,131.87,231.29,231.25,4.99432432]
[1758520166272,131.2,231.29,231.26,0.67]
[1758520166463,131.2,231.29,231.25,4.32432432]
[1758520166664,131.2,231.29,231.25,4.99432432]
[1758520167574,131.86,231.29,231.25,4.99432432]
[1758520168090,131.86,231.29,231.25,5.01432432]
[1758520170181,0.66,231.28,231.25,4.32432432]
[1758520170396,0.66,231.27,231.25,4.32432432]
[1758520170792,0.66,231.27,231.18,54.92812545]
[1758520170793,31.86,231.26,231.19,0.69]
[1758520170984,31.2,231.24,231.19,0.69]
[1758520171480,31.2,231.23,231.19,0.69]
[1758520171997,0.66,231.23,231.19,0.69]
[1758520172188,0.66,231.23,231.2,4.32525951]
[1758520173589,31.86,231.23,231.2,4.32525951]
[1758520173793,0.66,231.22,231.2,4.32525951]
[1758520174201,11.47150075,231.27,231.21,0.69]
[1758520174381,31.2,231.24,231.21,0.69]
[1758520175008,31.2,231.25,231.21,0.69]
[1758520175504,31.86,231.25,231.22,4.32488539]
[1758520175699,31.2,231.25,231.22,4.32488539]
[1758520175997,31.2,231.25,231.22,5.01488539]
[1758520176203,31.86,231.25,231.22,4.32488539]
[1758520177009,31.86,231.25,231.21,4.32507244]
[1758520177300,0.66,231.24,231.21,4.32507244]
[1758520178411,0.66,231.24,231.2,4.32525951]
[1758520178587,0.66,231.24,231.2,5.01525951]
[1758520179703,31.2,231.25,231.2,15.13840829]
[1758520179911,31.2,231.25,231.21,0.69]
[1758520180189,31.86,231.25,231.21,0.69]
[1758520180506,131.86,231.26,231.22,0.69]
[1758520181592,0.66,231.25,231.2,11.50314878]
[1758520182109,0.66,231.25,231.2,10.81314878]
[1758520182414,0.66,231.25,231.21,0.69]
[1758520185523,131.2,231.26,231.24,0.69]
[1758520185923,131.2,231.26,231.25,4.32432432]
[1758520186619,131.2,231.26,231.25,5.01432432]
[1758520189912,33.3,231.32,231.25,15.82513513]
[1758520190121,33.96,231.32,231.26,0.69]
[1758520191210,0.66,231.32,231.26,0.69]
[1758520191591,0.66,231.32,231.27,4.32395036]
[1758520191793,0.66,231.32,231.28,0.69]
[1758520192810,0.66,231.32,231.29,4.32357646]
[1758520193015,0.66,231.32,231.29,15.13251761]
[1758520193321,131.2,231.33,231.3,0.69]
[1758520193621,131.86,231.37,231.31,0.69]
[1758520193920,131.2,231.37,231.31,0.69]
[1758520194607,131.2,231.37,231.32,15.13055506]
[1758520194796,131.86,231.37,231.33,0.69]
[1758520195193,131.2,231.37,231.32,15.13055506]
[1758520195397,131.2,231.37,231.34,0.69]
[1758520195897,131.2,231.37,231.35,0.69]
[1758520196609,131.2,231.37,231.36,4.32226832]
[1758520196802,13.65798531,231.42,231.36,15.81793913]
[1758520197126,12.99798531,231.42,231.36,15.81793913]
[1758520197420,0.66,231.41,231.36,15.81793913]
[1758520197621,64.52,231.43,231.36,15.81793913]
[1758520197917,0.66,231.4,231.36,15.81793913]
[1758520198725,31.86,231.43,231.37,0.67]
[1758520199228,33.3,231.42,231.3,15.13186337]
[1758520199522,131.86,231.41,231.3,15.13186337]
[1758520199721,165.18,231.4,231.3,15.13186337]
[1758520199924,0.66,231.39,231.3,15.13186337]
[1758520200105,33.98,231.38,231.3,15.13186337]
[1758520200305,31.2,231.35,231.3,4.32338953]
[1758520200522,0.66,231.34,231.3,4.32338953]
[1758520200727,0.66,231.33,231.29,4.32357646]
[1758520200918,0.66,231.33,231.29,15.13251761]
[1758520201936,0.66,231.32,231.29,15.13251761]
[1758520202137,0.66,231.31,231.29,15.13251761]
[1758520202828,0.66,231.33,231.29,10.80894115]
[1758520203029,0.66,231.32,231.29,10.80894115]
[1758520203927,0.66,231.34,231.29,10.80894115]
[1758520204234,0.66,231.33,231.29,11.47894115]
[1758520206237,0.66,231.33,231.29,15.80251761]
[1758520206733,13.00080172,231.36,231.3,0.67]
[1758520206923,165.16,231.4,231.3,0.67]
[1758520208332,165.16,231.4,231.29,10.80894115]
[1758520208333,31.2,231.37,231.29,10.80894115]
[1758520208526,0.66,231.36,231.3,0.67]
[1758520209645,31.2,231.37,231.3,0.67]
[1758520209819,33.98,231.39,231.3,0.67]
[1758520210645,0.66,231.39,231.31,15.13120919]
[1758520210809,0.66,231.39,231.32,0.67]
[1758520212810,0.66,231.39,231.33,15.12990099]
[1758520213434,0.66,231.39,231.33,15.84990099]
[1758520213619,131.2,231.4,231.33,15.84990099]
[1758520213819,0.69,231.39,231.33,15.84990099]
[1758520216347,0.69,231.38,231.33,15.84990099]
[1758520216536,0.69,231.37,231.33,15.12990099]
[1758520217143,0.69,231.36,231.33,4.32282885]
[1758520217348,33.3,231.38,231.33,4.32282885]
[1758520217649,0.69,231.35,231.33,4.32282885]
[1758520218024,33.99,231.38,231.33,4.32282885]
[1758520218228,0.69,231.37,231.33,4.32282885]
[1758520218425,33.3,231.39,231.34,0.72]
[1758520218750,33.99,231.39,231.35,0.72]
[1758520219258,0.69,231.39,231.35,0.72]
[1758520219757,131.2,231.4,231.33,15.12990099]
[1758520219942,131.2,231.4,231.36,0.72]
[1758520220336,0.69,231.47,231.37,15.12728529]
[1758520220654,0.69,231.47,231.38,0.72]
[1758520222652,0.69,231.47,231.39,15.12597777]
[1758520222824,0.69,231.47,231.4,0.72]
[1758520224051,0.69,231.47,231.41,15.12467049]
[1758520224239,131.89,231.49,231.42,0.72]
[1758520225329,144.88291886,231.49,231.42,0.72]
[1758520225535,144.88291886,231.49,231.41,15.12467049]
[1758520225831,0.69,231.48,231.41,15.12467049]
[1758520226031,0.69,231.47,231.41,15.12467049]
[1758520226951,0.69,231.47,231.41,0.68]
[1758520227537,131.92,231.49,231.41,0.68]
[1758520227850,131.2,231.49,231.41,0.68]
[1758520228050,13.71179352,231.52,231.41,0.68]
[1758520228253,13.71179352,231.52,231.42,33.3]